Workbook

Sheet MSU
B1: Jouni Mutikainen | E1: 21.5.1960 Saari
B2: SUPERPESIS | E2: Runkosarja | I2: Kärkilyönnit (KL), pesänvälit | P2: Runkosarja TOP-30 | U2: Ylempi loppusarja | AB2: Ylempi loppusarja TOP-10 | AG2: Play off, voitot, voittoprosentti | AL2: Arvo-ottelut | AO2: Mitalit
B3: Vuosi | C3: Sija | D3: Seura | E3: OTT | F3: KUN | G3: LÖI | H3: TOI | I3: KL | J3: 0 > 1 | K3: 1 > 2 | L3: 2 > 3 | M3: 3 > k | N3: KL-% | P3: LÖI | Q3: TOI | R3: L+T | S3: KL | U3: OTT | V3: KUN | W3: LÖI | X3: TOI | Y3: KL | Z3: KL-% | AB3: LÖI | AC3: TOI | AD3: L+T | AE3: KL | AG3: Puolivälierät | AH3: Välierät | AI3: Pronssi | AJ3: Finaalit | AL3: IL | AM3: LL | AN3: Cup | AO3: K | AP3: H | AQ3: P
B4: 1981 | C4: 2. | D4: Kiri | E4: 13 | F4: 0 | G4: 10 | H4: 6 | I4: 44 | J4: 14 | K4: 14 | L4: 6 | M4: 10 | N4: 50.6 % | U4: 6 | V4: 0 | W4: 3 | X4: 1 | Y4: 23 | Z4: 48.9 % | AG4: Mitalisarja 2. | AP4: 1
B5: 1982 | C5: 1. | D5: Kiri | E5: 21 | F5: 1 | G5: 14 | H5: 13 | I5: 81 | J5: 25 | K5: 18 | L5: 23 | M5: 15 | N5: 60.9 % | P5: 30. | U5: 6 | V5: 0 | W5: 5 | X5: 1 | Y5: 20 | Z5: 46.5 % | AB5: 8. | AG5: Mitalisarja 1. | AO5: 1
B6: 1983 | C6: 3. | D6: Kiri | E6: 22 | F6: 1 | G6: 13 | H6: 27 | I6: 118 | J6: 25 | K6: 49 | L6: 30 | M6: 14 | N6: 68.2 % | Q6: 12. | R6: 23. | S6: 16. | U6: 6 | V6: 0 | W6: 4 | X6: 2 | Y6: 24 | Z6: 50.0 % | AG6: Mitalisarja 3. | AL6: 1 | AQ6: 1
B7: 1984 | C7: 1. | D7: Kiri | E7: 19 | F7: 1 | G7: 21 | H7: 21 | I7: 90 | J7: 28 | K7: 21 | L7: 19 | M7: 22 | N7: 51.4 % | P7: 14. | Q7: 21. | R7: 16. | U7: 6 | V7: 0 | W7: 5 | X7: 4 | Y7: 27 | Z7: 69.2 % | AG7: Mitalisarja 1. | AM7: 1 | AO7: 1
B8: 1985 | C8: 2. | D8: Kiri | E8: 22 | F8: 0 | G8: 21 | H8: 11 | I8: 91 | J8: 24 | K8: 15 | L8: 31 | M8: 21 | N8: 49.5 % | P8: 27. | U8: 6 | V8: 0 | W8: 2 | X8: 0 | Y8: 22 | Z8: 52.4 % | AG8: Mitalisarja 2. | AP8: 1
B9: 1986 | C9: 3. | D9: Kiri | E9: 22 | F9: 1 | G9: 20 | H9: 11 | I9: 87 | J9: 15 | K9: 21 | L9: 30 | M9: 21 | N9: 47.0 % | P9: 23. | U9: 5 | V9: 0 | W9: 6 | X9: 4 | Y9: 27 | Z9: 64.3 % | AB9: 8. | AG9: Loppusarja 1. | AQ9: 1
B10: 1987 | C10: 10. | D10: Kiri | E10: 22 | F10: 1 | G10: 10 | H10: 12 | I10: 78 | J10: 11 | K10: 25 | L10: 31 | M10: 11 | N10: 49.1 %
B11: 1988 | C11: 9. | D11: Kiri | E11: 22 | F11: 2 | G11: 23 | H11: 13 | I11: 119 | J11: 15 | K11: 29 | L11: 50 | M11: 25 | N11: 57.5 % | P11: 8. | R11: 23. | S11: 16.
B12: 1989 | C12: 11. | D12: Kiri | E12: 22 | F12: 1 | G12: 13 | H12: 13 | I12: 91 | J12: 3 | K12: 32 | L12: 42 | M12: 14 | N12: 57.2 %
B13: 1990 | C13: 10. | D13: Kiri | E13: 26 | F13: 0 | G13: 5 | H13: 18 | I13: 169 | J13: 21 | K13: 67 | L13: 76 | M13: 5 | N13: 65.8 % | S13: 4. | AL13: 1
B14: 1991 | C14: 8. | D14: Kiri | E14: 24 | F14: 0 | G14: 15 | H14: 21 | I14: 131 | J14: 17 | K14: 37 | L14: 62 | M14: 15 | N14: 62.1 % | S14: 22. | U14: 2 | V14: 0 | W14: 1 | X14: 0 | Y14: 5 | Z14: 35.7 % | AG14: 0-2 IPV
B15: Yhteensä | E15: 235 | F15: 8 | G15: 165 | H15: 166 | I15: 1099 | J15: 198 | K15: 328 | L15: 400 | M15: 173 | N15: 57.0 % | P15: 0-0-0 | Q15: 0-0-0 | R15: 0-0-0 | S15: 0-0-0 | U15: 37 | V15: 0 | W15: 26 | X15: 12 | Y15: 148 | Z15: 53.8 % | AB15: 0-0-0 | AC15: 0-0-0 | AD15: 0-0-0 | AE15: 0-0-0 | AG15: 0/1 | AH15: 0/0 | AI15: 0/0 | AJ15: 0/0 | AL15: 2 | AM15: 1 | AN15: 0 | AO15: 2 | AP15: 2 | AQ15: 2
AG16: 0.0 % | AH16: 0.0 % | AI16: 0.0 % | AJ16: 0.0 %
B17: Pesispörssi | D17: 921.0
B19: URA SUPERISSA | E19: OTT | F19: KUN | G19: LÖI | H19: TOI | I19: KL | K19: ka/L | L19: ka/T | M19: ka/KL | N19: KL-% | P19: ENSIMMÄISET RUNKOSARJASSA | AG19: ENSIMMÄISET PUDOTUSPELEISSÄ | AL19: YLEISÖ
B20: Runkosarja | E20: 235 | F20: 8 | G20: 165 | H20: 166 | I20: 1099 | K20: 0.74 | L20: 0.71 | M20: 4.68 | N20: 57.0 % | P20: Ottelu | R20: 17.05. 1981 Tahko - Kiri 12-9 | Y20: 1. ottelu | AB20: 20 v 11 kk 26 pv | AG20: Ottelu | AH20: 1. 22.08. 1981 Kiri - IPV 7-2 | AL20: 3247 | AN20: 21 v 3 kk 1 pv
B21: Ylempi loppusarja | E21: 37 | F21: 0 | G21: 26 | H21: 12 | I21: 148 | K21: 0.70 | L21: 0.32 | M21: 4.00 | N21: 53.8 % | P21: Lyöty | R21: 17.05. 1981 Tahko - Kiri 12-9 | Y21: 1. ottelu | AB21: 20 v 11 kk 26 pv | AG21: Lyöty | AH21: 1. 22.08. 1981 Kiri - IPV 7-2 | AL21: 3247 | AN21: 21 v 3 kk 1 pv
B22: Alempi loppusarja | E22: 10 | F22: 1 | G22: 11 | H22: 8 | I22: 56 | K22: 1.20 | L22: 0.80 | M22: 5.60 | N22: 64.7 % | P22: Tuotu | R22: 24.05. 1981 KaKa - Kiri 10-16 | Y22: 2. ottelu | AB22: 21 v 0 kk 3 pv | AG22: Tuotu | AH22: 3. 29.08. 1981 SMJ - Kiri 5-9 | AL22: 1750 | AN22: 21 v 3 kk 8 pv
B23: KAIKKI | E23: 282 | F23: 9 | G23: 202 | H23: 186 | I23: 1303 | K23: 0.75 | L23: 0.66 | M23: 4.62 | N23: 56.9 % | O23: 722 | P23: Kunnari | R23: 14.07. 1982 Kiri - SiiPo 16-6 | Y23: 29. ottelu | AB23: 22 v 1 kk 23 pv | AG23: Kunnari
O24: 815
B25: Seurat | D25: Kiri = Jyväskylän Kiri (1930)
B27: RUNKOSARJA, KA / OTT | F27: IKÄ | G27: OTT | H27: LÖI | I27: TOI | J27: TEHO | K27: KL | M27: SIJOITUS | P27: OTT | Q27: LÖI | R27: TOI | S27: TEHO | U27: KL | W27: RUNKOSARJA, TASASATASET, ka. / peli | AI27: KATSOJIA YLI 5000 ( 2 )
B28: 1981 | C28: 2. | D28: Kiri | F28: 21 | G28: 13 | H28: =PRODUCT((F4+G4)/E4) -> 0.77 | I28: =PRODUCT(H4/E4) -> 0.46 | J28: =PRODUCT(F4+G4+H4)/E4 -> 1.23 | K28: =PRODUCT(I4/E4) -> 3.38 | M28: 1945 - 1981 | O28: 20 | P28: 802. | Q28: 624. | R28: 746. | S28: 677. | U28: 231. | W28: Ottelutilasto | AI28: 5237 | AJ28: 43. 05.09. 1981 Kiri - Tahko 6-4, ms 4/6
B29: 1982 | C29: 1. | D29: Kiri | F29: 22 | G29: 21 | H29: =PRODUCT((F5+G5)/E5) -> 0.71 | I29: =PRODUCT(H5/E5) -> 0.62 | J29: =PRODUCT(F5+G5+H5)/E5 -> 1.33 | K29: =PRODUCT(I5/E5) -> 3.86 | M29: 1945 - 1982 | O29: 20 | P29: 557. | Q29: 431. | R29: 531. | S29: 486. | U29: 151. | W29: 200 | Y29: 85. 04.07. 1990 Kiri - KPL 8-7 | AG29: 30 v 1 kk 13 pv | AI29: 5033 | AJ29: 67. 19.06. 1983 Tahko - Kiri 9-5
B30: 1983 | C30: 3. | D30: Kiri | F30: 23 | G30: 22 | H30: =PRODUCT((F6+G6)/E6) -> 0.64 | I30: =PRODUCT(H6/E6) -> 1.23 | J30: =PRODUCT(F6+G6+H6)/E6 -> 1.86 | K30: =PRODUCT(I6/E6) -> 5.36 | M30: 1945 - 1983 | O30: 21 | P30: 441. | Q30: 351. | R30: 341. | S30: 357. | U30: 106.
B31: 1984 | C31: 1. | D31: Kiri | F31: 24 | G31: 19 | H31: 1.16 | I31: 1.11 | J31: 2.26 | K31: 4.74 | M31: 1945 - 1984 | P31: 359. | Q31: 253. | R31: 253. | S31: 250. | U31: 87. | W31: Kärkilyöjätilasto | AI31: YLEISÖENNÄTYS KOTONA
B32: 1985 | C32: 2. | D32: Kiri | F32: 25 | G32: 22 | H32: 0.95 | I32: 0.50 | J32: 1.45 | K32: 4.14 | M32: 1945 - 1985 | P32: 270. | Q32: 191. | R32: 222. | S32: 208. | U32: 78. | W32: 1000 | Y32: 28. 09.06. 1991 Kiri - KiPa 14-5 | AG32: 219. ottelu | AH32: 4.57 | AI32: 5237 | AJ32: 43. 05.09. 1981 Kiri - Tahko 6-4, mitalisarja 4/6
B33: 1986 | C33: 3. | D33: Kiri | F33: 26 | G33: 22 | H33: 0.95 | I33: 0.50 | J33: 1.45 | K33: 3.95 | M33: 1945 - 1986 | P33: 226. | Q33: 151. | R33: 201. | S33: 176. | U33: 65.
B34: 1987 | C34: 10. | D34: Kiri | F34: 27 | G34: 22 | H34: 0.50 | I34: 0.55 | J34: 1.05 | K34: 3.55 | M34: 1945 - 1987 | P34: 179. | Q34: 128. | R34: 176. | S34: 158. | U34: 58. | AI34: YLEISÖENNÄTYS VIERAISSA
B35: 1988 | C35: 9. | D35: Kiri | F35: 28 | G35: 22 | H35: 1.14 | I35: 0.59 | J35: 1.73 | K35: 5.41 | M35: 1945 - 1988 | P35: 135. | Q35: 96. | R35: 159. | S35: 126. | U35: 49. | AI35: 5033 | AJ35: 67. 19.06. 1983 Tahko - Kiri 9-5
B36: 1989 | C36: 11. | D36: Kiri | F36: 29 | G36: 22 | H36: 0.64 | I36: 0.59 | J36: 1.23 | K36: 4.14 | M36: 1945 - 1989 | P36: 101. | Q36: 84. | R36: 136. | S36: 108. | U36: 44.
B37: 1990 | C37: 10. | D37: Kiri | F37: 30 | G37: 26 | H37: 0.19 | I37: 0.69 | J37: 0.88 | K37: 6.50 | M37: 1945 - 1990 | P37: 74. | Q37: 83. | R37: 111. | S37: 93. | U37: 29. | AI37: RUNKOSARJA JA YLEMPI LOPPUSARJA
B38: 1991 | C38: 8. | D38: Kiri | F38: 31 | G38: 24 | H38: 0.63 | I38: 0.88 | J38: 1.50 | K38: 5.46 | M38: 1945 - 1991 | P38: 55. | Q38: 70. | R38: 89. | S38: 80. | U38: 23. | AI38: KATSOJIA | AJ38: 528 791
B41: PLAY OFF, KA / OTT | F41: IKÄ | G41: OTT | H41: LÖI | I41: TOI | J41: TEHO | K41: KL | M41: SIJOITUS | P41: OTT | Q41: LÖI | R41: TOI | S41: TEHO | U41: KL | W41: PLAY OFF, TASASATASET, ka. / peli
B42: 1981 | C42: 2. | D42: Kiri | F42: 21 | G42: 6 | H42: =PRODUCT((V4+W4)/U4) -> 0.50 | I42: =PRODUCT(X4/U4) -> 0.17 | J42: =PRODUCT(V4+W4+X4)/U4 -> 0.67 | K42: =PRODUCT(Y4/U4) -> 3.83 | M42: 1979 - 1981 | O42: 20 | P42: 38. | Q42: 43. | R42: 56. | S42: 54. | U42: 48.
B43: 1982 | C43: 1. | D43: Kiri | F43: 22 | G43: 6 | H43: 0.83 | I43: 0.17 | J43: 1.00 | K43: 3.33 | M43: 1979 - 1982 | O43: 20 | P43: 36. | Q43: 28. | R43: 57. | S43: 39. | U43: 37.
B44: 1983 | C44: 3. | D44: Kiri | F44: 23 | G44: 6 | H44: 0.67 | I44: 0.33 | J44: 1.00 | K44: 4.00 | M44: 1979 - 1983 | O44: 21 | P44: 20. | Q44: 18. | R44: 52. | S44: 32. | U44: 28.
B45: 1984 | C45: 1. | D45: Kiri | F45: 24 | G45: 6 | H45: 0.83 | I45: 0.67 | J45: 1.50 | K45: 4.50 | M45: 1979 - 1984 | P45: 17. | Q45: 15. | R45: 36. | S45: 26. | U45: 22.
B46: 1985 | C46: 2. | D46: Kiri | F46: 25 | G46: 6 | H46: 0.33 | I46: 0.00 | J46: 0.33 | K46: 3.67 | M46: 1979 - 1985 | P46: 13. | Q46: 19. | R46: 43. | S46: 30. | U46: 17.
B47: 1986 | C47: 3. | D47: Kiri | F47: 26 | G47: 5 | H47: 1.20 | I47: 0.80 | J47: 2.00 | K47: 5.40 | M47: 1979 - 1986 | P47: 7. | Q47: 11. | R47: 37. | S47: 22. | U47: 12.
B48: 1987 | C48: 10. | D48: Kiri | F48: 27 | M48: 1979 - 1987 | P48: 8. | Q48: 15. | R48: 41. | S48: 26. | U48: 16.
B49: 1988 | C49: 9. | D49: Kiri | F49: 28 | M49: 1979 - 1988 | P49: 12. | Q49: 15. | R49: 48. | S49: 28. | U49: 17.
B50: 1989 | C50: 11. | D50: Kiri | F50: 29 | M50: 1979 - 1989 | P50: 14. | Q50: 16. | R50: 54. | S50: 31. | U50: 19.
B51: 1990 | C51: 10. | D51: Kiri | F51: 30 | M51: 1979 - 1990 | P51: 14. | Q51: 18. | R51: 62. | S51: 36. | U51: 21.
B52: 1991 | C52: 8. | D52: Kiri | F52: 31 | G52: 2 | H52: =PRODUCT((V14+W14)/U14) -> 0.50 | I52: =PRODUCT(X14/U14) -> 0.00 | J52: =PRODUCT(V14+W14+X14)/U14 -> 0.50 | K52: =PRODUCT(Y14/U14) -> 2.50 | M52: 1979 - 1991 | P52: 15. | Q52: 20. | R52: 67. | S52: 40. | U52: 25.

Sheet Arvo-ottelut
B1: ITÄ - LÄNSI - KORTTI
B2: Jouni Mutikainen | C2: 21.5.1960 Saari
B3: MIEHET | C3: Itä - Länsi, tulos | D3: Joukkue | E3: Seura | G3: V | H3: T | I3: H | J3: Up. | K3: Lj. | L3: Palk. | M3: O | N3: K | O3: L | P3: T | Q3: KL | R3: 1 | S3: 2 | T3: 3 | U3: k | V3: KL-% | W3: Pelinjohtaja | X3: Yleisöä
B4: 21.08. 1983 Meilahti, Helsinki | C4: 3-11 | D4: Itä | E4: Kiri | I4: 1 | J4: 3v | K4: 9 | M4: 1 | P4: 1 | Q4: 2/5 | R4: 0/1 | S4: 0/1 | T4: 1/1 | U4: 1/2 | V4: 40.0 % | W4: Reijo Salo | X4: 5011
B5: 22.07. 1990 Vimpeli | C5: 5-8 | D5: Itä | E5: Kiri | I5: 1 | K5: jok | M5: 1 | Q5: 0/0 | V5: ---- | W5: Aulis Väisänen | X5: 5572
B6: Yhteensä | I6: 2 | M6: 2 | P6: 1 | Q6: 2/5 | R6: 0/1 | S6: 0/1 | T6: 1/1 | U6: 1/2 | V6: 40.0 %
B7: Ikä ensimmäisessä ottelussa | C7: 23 v 3 kk 0 pv
B9: B-POJAT | C9: Itä - Länsi, tulos | D9: Joukkue | E9: Seura | G9: V | H9: T | I9: H | J9: Up. | K9: Lj. | L9: Palk. | M9: O | N9: K | O9: L | P9: T | Q9: KL | R9: 1 | S9: 2 | T9: 3 | U9: k | V9: KL-% | W9: Pelinjohtaja | X9: Yleisöä
B10: 13.08. 1977 Hamina | C10: 6-4 | D10: Itä | G10: 1 | K10: vai | M10: 1 | P10: 1 | W10: Ari Turppo
B12: A-POJAT | C12: Itä - Länsi, tulos | D12: Joukkue | E12: Seura | G12: V | H12: T | I12: H | J12: Up. | K12: Lj. | L12: Palk. | M12: O | N12: K | O12: L | P12: T | Q12: KL | R12: 1 | S12: 2 | T12: 3 | U12: k | V12: KL-% | W12: Pelinjohtaja | X12: Yleisöä
B13: 19.08. 1978 Sotkamo | C13: 8-4 | D13: Itä | E13: IPV | G13: 1 | J13: 3p | K13: 2 | M13: 1 | P13: 3 | W13: Osmo Määttä | X13: 246
B15: LIITTO - LEHDISTÖ - KORTTI
B16: MIEHET | C16: Tulos | D16: Joukkue | E16: Seura | G16: V | H16: T | I16: H | J16: Up. | K16: Lj. | L16: Palk. | M16: O | N16: K | O16: L | P16: T | Q16: KL | R16: 1 | S16: 2 | T16: 3 | U16: k | V16: KL-% | W16: Pelinjohtaja | X16: Yleisöä
B17: 15.06. 1984 Mikkeli | C17: 6-5 | D17: Liitto | E17: Kiri | G17: 1 | K17: vai | M17: 1 | Q17: 2/7 | R17: 2/4 | S17: 0/1 | T17: 0/1 | U17: 0/1 | V17: 28.6 % | W17: Aulis Väisänen | X17: 2450
B18: Ikä ensimmäisessä ottelussa | C18: 24 v 0 kk 25 pv
B22: Pelannut SM-sarjassa lentopalloa Jyväskylän Kirissä.

Sheet Pelinjohtaja
B1: PELINJOHTAJAKORTTI
B2: Jouni Mutikainen | E2: 21.5.1960 Saari
B3: MSU | C3: Runkosarja | J3: Ylempi loppusarja | N3: Alempi loppusarja | R3: Mitalit | U3: Huomautuksia
B4: Vuosi | C4: Seura | D4: Sija | E4: O | F4: V | G4: H | H4: Voitto-% | J4: O | K4: V | L4: H | M4: Voitto-% | N4: O | O4: V | P4: H | Q4: Voitto-% | R4: 1 | S4: 2 | T4: 3
B5: 1997 | C5: Kiri | D5: 14. | E5: 6 | F5: 2 | G5: 4 | H5: =PRODUCT(F5/E5) -> 33.3 %
B6: Yhteensä | E6: =SUM(E5:E5) -> 6 | F6: =SUM(F5:F5) -> 2 | G6: =SUM(G5:G5) -> 4 | H6: =PRODUCT(F6/E6) -> 33.3 % | J6: =SUM(J5:J5) -> 0 | K6: =SUM(K5:K5) -> 0 | L6: =SUM(L5:L5) -> 0 | M6: 0.0 % | N6: =SUM(N5:N5) -> 0 | O6: =SUM(O5:O5) -> 0 | P6: =SUM(P5:P5) -> 0 | Q6: 0.0 % | R6: =SUM(R5:R5) -> 0 | S6: =SUM(S5:S5) -> 0 | T6: =SUM(T5:T5) -> 0
B8: URA SUPERISSA | E8: O | F8: V | G8: H | H8: Voitto-% | J8: PLAY OFF | M8: SARJAT | N8: O | O8: V | P8: H | Q8: Voitto-%
B9: Runkosarja | E9: =PRODUCT(E6) -> 6 | F9: =PRODUCT(F6) -> 2 | G9: =PRODUCT(G6) -> 4 | H9: =PRODUCT(F9/E9) -> 33.3 % | J9: Puolivälierät
B10: Ylempi loppusarja | J10: Välierät
B11: Alempi loppusarja | J11: Finaalit
B12: KAIKKI | E12: =SUM(E9:E11) -> 6 | F12: =SUM(F9:F11) -> 2 | G12: =SUM(G9:G11) -> 4 | H12: =PRODUCT(F12/E12) -> 33.3 % | J12: KAIKKI
B14: Seurat: | C14: Kiri = Jyväskylän Kiri (1930)

Sheet Kärkilyönnit
B1: KÄRKILYÖNNIT RUNKOSARJASSA | V1: VUOSITTAISET SIJOITUKSET TOP - 30
G2: 0 > 1 | J2: 1 > 2 | M2: 2 > 3 | P2: 3 > k | S2: Yhteensä
B3: Vuosi | C3: Sija | D3: Seura | E3: OTT | F3: KL | G3: YHT | H3: % | I3: KL | J3: YHT | K3: % | L3: KL | M3: YHT | N3: % | O3: KL | P3: YHT | Q3: % | R3: KL | S3: YHT | T3: % | V3: Vuosi | W3: Sija | X3: Seura | Y3: 0 > 1 | Z3: 1 > 2 | AA3: 2 > 3 | AB3: 3 > k | AC3: KL
B4: 1981 | C4: 2. | D4: Kiri | E4: 13 | F4: 14 | G4: 27 | H4: =PRODUCT(F4/G4) -> 51.9 % | I4: 14 | J4: 23 | K4: =PRODUCT(I4/J4) -> 60.9 % | L4: 6 | M4: 15 | N4: =PRODUCT(L4/M4) -> 40.0 % | O4: 10 | P4: 22 | Q4: =PRODUCT(O4/P4) -> 45.5 % | R4: 44 | S4: =PRODUCT(G4+J4+M4+P4) -> 87 | T4: =PRODUCT(R4/S4) -> 50.6 % | V4: 1981 | W4: 2. | X4: Kiri
B5: 1982 | C5: 1. | D5: Kiri | E5: 21 | F5: 25 | G5: 35 | H5: 71.4 % | I5: 18 | J5: 31 | K5: 58.1 % | L5: 23 | M5: 37 | N5: 62.2 % | O5: 15 | P5: 30 | Q5: 50.0 % | R5: 81 | S5: 133 | T5: =PRODUCT(R5/S5) -> 60.9 % | V5: 1982 | W5: 1. | X5: Kiri | AB5: 30.
B6: 1983 | C6: 4. | D6: Kiri | E6: 22 | F6: 25 | G6: 34 | H6: 73.5 % | I6: 49 | J6: 74 | K6: 66.2 % | L6: 30 | M6: 41 | N6: 73.2 % | O6: 14 | P6: 24 | Q6: 58.3 % | R6: 118 | S6: 173 | T6: =PRODUCT(R6/S6) -> 68.2 % | V6: 1983 | W6: 4. | X6: Kiri | Z6: 5. | AA6: 29. | AC6: 16.
B7: 1984 | C7: 2. | D7: Kiri | E7: 19 | F7: 28 | G7: 45 | H7: 62.2 % | I7: 21 | J7: 40 | K7: 52.5 % | L7: 19 | M7: 36 | N7: 52.8 % | O7: 22 | P7: 54 | Q7: 40.7 % | R7: 90 | S7: 175 | T7: 51.4 % | V7: 1984 | W7: 2. | X7: Kiri | AB7: 14.
B8: 1985 | C8: 1. | D8: Kiri | E8: 22 | F8: 24 | G8: 51 | H8: 47.1 % | I8: 15 | J8: 36 | K8: 41.7 % | L8: 31 | M8: 48 | N8: 64.6 % | O8: 21 | P8: 49 | Q8: 42.9 % | R8: 91 | S8: 184 | T8: 49.5 % | V8: 1985 | W8: 1. | X8: Kiri | AA8: 21. | AB8: 27.
B9: 1986 | C9: 5. | D9: Kiri | E9: 22 | F9: 15 | G9: 35 | H9: 42.9 % | I9: 21 | J9: 43 | K9: 48.8 % | L9: 30 | M9: 49 | N9: 61.2 % | O9: 21 | P9: 58 | Q9: 36.2 % | R9: =PRODUCT(F9+I9+L9+O9) -> 87 | S9: 185 | T9: 47.0 % | V9: 1986 | W9: 5. | X9: Kiri | AB9: 23.
B10: 1987 | C10: 12. | D10: Kiri | E10: 22 | F10: 11 | I10: 25 | L10: 31 | O10: 11 | R10: =PRODUCT(F10+I10+L10+O10) -> 78 | S10: 159 | T10: =PRODUCT(R10/S10) -> 49.1 % | V10: 1987 | W10: 12. | X10: Kiri | AA10: 19.
B11: 1988 | C11: 9. | D11: Kiri | E11: 22 | F11: 15 | G11: 33 | H11: =PRODUCT(F11/G11) -> 45.5 % | I11: 29 | J11: 57 | K11: =PRODUCT(I11/J11) -> 50.9 % | L11: 50 | M11: 70 | N11: =PRODUCT(L11/M11) -> 71.4 % | O11: 25 | P11: 47 | Q11: =PRODUCT(O11/P11) -> 53.2 % | R11: =PRODUCT(F11+I11+L11+O11) -> 119 | S11: 207 | T11: 57.5 % | V11: 1988 | W11: 9. | X11: Kiri | AA11: 5. | AB11: 8. | AC11: 16.
B12: 1989 | C12: 11. | D12: Kiri | E12: 22 | F12: 3 | I12: 32 | L12: 42 | O12: 14 | R12: =PRODUCT(F12+I12+L12+O12) -> 91 | S12: 159 | T12: =PRODUCT(R12/S12) -> 57.2 % | V12: 1989 | W12: 11. | X12: Kiri | Z12: 25. | AA12: 6.
B13: 1990 | C13: 11. | D13: Kiri | E13: 26 | F13: 21 | G13: 35 | H13: =PRODUCT(F13/G13) -> 60.0 % | I13: 67 | J13: 93 | K13: =PRODUCT(I13/J13) -> 72.0 % | L13: 76 | M13: 97 | N13: =PRODUCT(L13/M13) -> 78.4 % | O13: 5 | P13: 30 | Q13: =PRODUCT(O13/P13) -> 16.7 % | R13: 169 | S13: 255 | T13: =PRODUCT(R13/S13) -> 66.3 % | V13: 1990 | W13: 11. | X13: Kiri | Z13: 2. | AA13: 1. | AC13: 4.
B14: 1991 | C14: 8. | D14: Kiri | E14: 24 | F14: 17 | G14: 32 | H14: =PRODUCT(F14/G14) -> 53.1 % | I14: 37 | J14: 58 | K14: =PRODUCT(I14/J14) -> 63.8 % | L14: 62 | M14: 85 | N14: =PRODUCT(L14/M14) -> 72.9 % | O14: 15 | P14: 36 | Q14: =PRODUCT(O14/P14) -> 41.7 % | R14: =PRODUCT(F14+I14+L14+O14) -> 131 | S14: 211 | T14: =PRODUCT(R14/S14) -> 62.1 % | V14: 1991 | W14: 8. | X14: Kiri | Z14: 30. | AA14: 3. | AC14: 22.
B15: Yhteensä | E15: =SUM(E4:E14) -> 235 | F15: =SUM(F4:F14)-14 -> 184 | G15: =SUM(G4:G14) -> 327 | H15: =PRODUCT(F15/G15) -> 56.3 % | I15: =SUM(I4:I14)-57 -> 271 | J15: =SUM(J4:J14) -> 455 | K15: =PRODUCT(I15/J15) -> 59.6 % | L15: =SUM(L4:L14)-73 -> 327 | M15: =SUM(M4:M14) -> 478 | N15: =PRODUCT(L15/M15) -> 68.4 % | O15: =SUM(O4:O14)-25 -> 148 | P15: =SUM(P4:P14) -> 350 | Q15: =PRODUCT(O15/P15) -> 42.3 % | R15: =SUM(R4:R14) -> 1099 | S15: =SUM(S4:S14) -> 1928 | T15: =PRODUCT(R15/S15) -> 57.0 %
B17: KÄRKILYÖNNIT YLEMMISSÄ PUDOTUSPELEISSÄ | V17: VUOSITTAISET SIJOITUKSET TOP - 30
G18: 0 > 1 | J18: 1 > 2 | M18: 2 > 3 | P18: 3 > k | S18: Yhteensä
B19: Vuosi | C19: Sija | D19: Seura | E19: OTT | F19: KL | G19: YHT | H19: % | I19: KL | J19: YHT | K19: % | L19: KL | M19: YHT | N19: % | O19: KL | P19: YHT | Q19: % | R19: KL | S19: YHT | T19: % | V19: Vuosi | W19: Sija | X19: Seura | Y19: 0 > 1 | Z19: 1 > 2 | AA19: 2 > 3 | AB19: 3 > k | AC19: KL
B20: 1981 | C20: 2. | D20: Kiri | E20: 6 | F20: 6 | G20: 11 | H20: 54.5 % | I20: 4 | J20: 11 | K20: 36.4 % | L20: 10 | M20: 13 | N20: 76.9 % | O20: 3 | P20: 12 | Q20: 25.0 % | R20: 23 | S20: 47 | T20: 48.9 % | V20: 1981 | W20: 2. | X20: Kiri | Y20: 21. | Z20: 28. | AA20: 3. | AB20: 19. | AC20: 18.
B21: 1982 | C21: 1. | D21: Kiri | E21: 6 | F21: 5 | G21: 15 | H21: 33.3 % | I21: 6 | J21: 10 | K21: 60.0 % | L21: 4 | M21: 7 | N21: 57.1 % | O21: 5 | P21: 11 | Q21: 45.5 % | R21: 20 | S21: 43 | T21: 46.5 % | V21: 1982 | W21: 1. | X21: Kiri | Y21: 17. | Z21: 19. | AA21: 30. | AB21: 8. | AC21: 25.
B22: 1983 | C22: 3. | D22: Kiri | E22: 6 | F22: 11 | G22: 16 | H22: 68.8 % | I22: 6 | J22: 16 | K22: 37.5 % | L22: 3 | M22: 8 | N22: 37.5 % | O22: 4 | P22: 8 | Q22: 50.0 % | R22: 24 | S22: 48 | T22: 50.0 % | V22: 1983 | W22: 3. | X22: Kiri | Y22: 5. | Z22: 19. | AB22: 12. | AC22: 17.
B23: 1984 | C23: 1. | D23: Kiri | E23: 6 | F23: 5 | G23: 8 | H23: 62.5 % | I23: 11 | J23: 14 | K23: 78.6 % | L23: 6 | M23: 8 | N23: 75.0 % | O23: 5 | P23: 9 | Q23: 55.6 % | R23: 27 | S23: 39 | T23: 69.2 % | V23: 1984 | W23: 1. | X23: Kiri | Y23: 22. | Z23: 5. | AA23: 18. | AB23: 11. | AC23: 14.
B24: 1985 | C24: 2. | D24: Kiri | E24: 6 | F24: 6 | G24: 13 | H24: 46.2 % | I24: 7 | J24: 12 | K24: 58.3 % | L24: 7 | M24: 12 | N24: 58.3 % | O24: 2 | P24: 5 | Q24: 40.0 % | R24: 22 | S24: 42 | T24: 52.4 % | V24: 1985 | W24: 2. | X24: Kiri | Y24: 15. | Z24: 12. | AA24: 19. | AB24: 24. | AC24: 23.
B25: 1986 | C25: 3. | D25: Kiri | E25: 5 | F25: 7 | G25: 11 | H25: 63.6 % | I25: 3 | J25: 8 | K25: 37.5 % | L25: 11 | M25: 12 | N25: 91.7 % | O25: 6 | P25: 11 | Q25: 54.5 % | R25: 27 | S25: 42 | T25: 64.3 % | V25: 1986 | W25: 3. | X25: Kiri | Y25: 15. | AA25: 6. | AB25: 8. | AC25: 15.
B26: 1987 | C26: 10. | D26: Kiri | V26: 1987 | W26: 10. | X26: Kiri
B27: 1988 | C27: 9. | D27: Kiri | V27: 1988 | W27: 9. | X27: Kiri
B28: 1989 | C28: 11. | D28: Kiri | V28: 1989 | W28: 11. | X28: Kiri
B29: 1990 | C29: 10. | D29: Kiri | V29: 1990 | W29: 10. | X29: Kiri
B30: 1991 | C30: 8. | D30: Kiri | E30: 2 | F30: 2 | G30: 4 | H30: 50.0 % | I30: 1 | J30: 4 | K30: 25.0 % | L30: 1 | M30: 3 | N30: 33.3 % | O30: 1 | P30: 3 | Q30: 33.3 % | R30: 5 | S30: 14 | T30: 35.7 % | V30: 1991 | W30: 8. | X30: Kiri
B31: Yhteensä | E31: =SUM(E18:E30) -> 37 | F31: =SUM(F20:F30) -> 42 | G31: =SUM(G20:G30) -> 78 | H31: =PRODUCT(F31/G31) -> 53.8 % | I31: =SUM(I20:I30) -> 38 | J31: =SUM(J20:J30) -> 75 | K31: =PRODUCT(I31/J31) -> 50.7 % | L31: =SUM(L20:L30) -> 42 | M31: =SUM(M20:M30) -> 63 | N31: =PRODUCT(L31/M31) -> 66.7 % | O31: =SUM(O20:O30) -> 26 | P31: =SUM(P20:P30) -> 59 | Q31: =PRODUCT(O31/P31) -> 44.1 % | R31: =SUM(R20:R30) -> 148 | S31: =SUM(S20:S30) -> 275 | T31: =PRODUCT(R31/S31) -> 53.8 %
B33: KÄRKILYÖNNIT
G34: 0 > 1 | J34: 1 > 2 | M34: 2 > 3 | P34: 3 > k | S34: Yhteensä
E35: OTT | F35: KL | G35: YHT | H35: % | I35: KL | J35: YHT | K35: % | L35: KL | M35: YHT | N35: % | O35: KL | P35: YHT | Q35: % | R35: KL | S35: YHT | T35: %
B36: RUNKOSARJA | E36: =PRODUCT(E15) -> 235 | F36: =PRODUCT(F15) -> 184 | G36: =PRODUCT(G15) -> 327 | H36: =PRODUCT(H15) -> 56.3 % | I36: =PRODUCT(I15) -> 271 | J36: =PRODUCT(J15) -> 455 | K36: =PRODUCT(K15) -> 59.6 % | L36: =PRODUCT(L15) -> 327 | M36: =PRODUCT(M15) -> 478 | N36: =PRODUCT(N15) -> 68.4 % | O36: =PRODUCT(O15) -> 148 | P36: =PRODUCT(P15) -> 350 | Q36: =PRODUCT(Q15) -> 42.3 % | R36: =PRODUCT(R15) -> 1099 | S36: =PRODUCT(S15) -> 1928 | T36: =PRODUCT(T15) -> 57.0 %
B37: PLAY OFF | E37: =PRODUCT(E31) -> 37 | F37: =PRODUCT(F31) -> 42 | G37: 78 | H37: 53.8 % | I37: 38 | J37: 75 | K37: 50.7 % | L37: 42 | M37: 63 | N37: 66.7 % | O37: 26 | P37: 59 | Q37: 44.1 % | R37: 148 | S37: 275 | T37: 53.8 %
